bitfinex/quotes_SOLUSD_20250830
["timestamp","ask_amount","ask_price","bid_price","bid_amount"]
[1756573177236,5.00637029,200.74,200.73,0.74]
[1756573178935,5.00637029,200.74,200.73,0.7]
[1756573184051,1.997653,200.74,200.73,0.7]
[1756573184241,5.00637029,200.74,200.73,0.7]
[1756573185164,4.20431037,200.75,200.73,5.68181637]
[1756573185328,4.20431037,200.75,200.74,0.67]
[1756573189161,12.28553166,200.76,200.74,0.67]
[1756573196167,8.08122129,200.76,200.74,0.67]
[1756573198278,8.08122129,200.76,200.75,0.67]
[1756573200283,5.072504,200.76,200.75,0.67]
[1756573201175,9.27681437,200.76,200.75,0.67]
[1756573201553,5.072504,200.76,200.75,0.67]
[1756573201759,9.27681437,200.76,200.75,0.67]
[1756573201959,8.08122129,200.76,200.75,0.67]
[1756573202385,5.072504,200.76,200.75,0.67]
[1756573203682,26.0,200.74,200.73,0.03]
[1756573203885,9.27681437,200.76,200.73,0.03]
[1756573204099,9.27681437,200.76,200.75,16.6043113]
[1756573204100,0.06,200.76,200.75,16.6043113]
[1756573204293,0.06,200.76,200.73,43.25181637]
[1756573204294,0.06,200.76,200.73,5.01181637]
[1756573204493,0.06,200.76,200.74,14.30559401]
[1756573204717,0.06,200.79,200.75,16.6043113]
[1756573205020,0.06,200.79,200.74,0.71]
[1756573205021,3.06871729,200.79,200.76,0.71]
[1756573205183,3.00871729,200.78,200.77,0.71]
[1756573205609,7.27302766,200.79,200.77,0.71]
[1756573205806,26.0,200.75,200.73,0.03]
[1756573206107,3.00871729,200.74,200.73,0.03]
[1756573206281,29.06871729,200.74,200.73,0.03]
[1756573206486,31.00676929,200.74,200.73,0.03]
[1756573206679,32.19835482,200.74,200.73,0.74]
[1756573206877,31.00676929,200.74,200.73,0.03]
[1756573207506,31.06676929,200.74,200.73,0.03]
[1756573208394,36.04833748,200.74,200.72,0.03]
[1756573208599,36.04833748,200.74,200.71,0.03]
[1756573208600,11.40617946,200.73,200.71,0.03]
[1756573208790,29.00871729,200.72,200.71,0.03]
[1756573209127,3.06871729,200.72,200.71,0.03]
[1756573209289,29.06871729,200.72,200.71,0.03]
[1756573209488,29.00871729,200.72,200.71,0.03]
[1756573209808,7.59696449,200.74,200.71,0.03]
[1756573210015,33.20746338,200.72,200.71,0.03]
[1756573210431,29.00871729,200.72,200.71,0.74]
[1756573210725,3.00871729,200.72,200.71,0.74]
[1756573211107,4.19874609,200.73,200.71,0.74]
[1756573211435,1.998052,200.74,200.71,0.74]
[1756573211598,33.20746338,200.75,200.71,0.74]
[1756573211599,4.19874609,200.75,200.72,3.00871729]
[1756573211803,4.25874609,200.76,200.73,0.71]
[1756573212005,7.26746409,200.76,200.73,0.71]
[1756573213036,7.20746338,200.75,200.71,0.74]
[1756573213216,7.20746338,200.75,200.72,0.71]
[1756573213917,7.20746338,200.75,200.73,0.71]
[1756573214925,4.19874609,200.74,200.71,0.03]
[1756573215104,30.19874609,200.72,200.71,0.03]
[1756573215520,26.0,200.72,200.71,0.03]
[1756573215705,1.997753,200.72,200.71,0.03]
[1756573218147,27.997753,200.72,200.71,0.03]
[1756573219220,27.997753,200.72,200.71,0.74]
[1756573219739,27.997753,200.72,200.71,0.03]
[1756573222947,27.997753,200.72,200.71,0.74]
[1756573224140,27.997753,200.72,200.71,0.03]
[1756573224649,28.057753,200.72,200.71,0.03]
[1756573226244,28.057753,200.72,200.71,0.74]
[1756573227147,28.057753,200.72,200.71,0.03]
[1756573227523,28.057753,200.72,200.71,0.74]
[1756573229632,0.06,200.72,200.71,8.73103007]
[1756573230026,0.06,200.72,200.71,12.98977607]
[1756573230439,0.06,200.75,200.72,13.59559401]
[1756573230742,0.06,200.75,200.74,3.00871729]
[1756573230936,3.068718,200.75,200.74,3.00871729]
[1756573231139,0.06,200.75,200.74,3.71871729]
[1756573233361,0.06,200.75,200.74,8.70028548]
[1756573238466,0.06,200.75,200.74,46.96028548]
[1756573245748,0.06,200.75,200.74,8.70028548]
[1756573245975,0.06,200.75,200.74,46.94028548]
[1756573248879,0.06,200.75,200.74,8.70028548]
[1756573249184,0.06,200.75,200.74,46.94028548]
[1756573252863,0.06,200.75,200.74,43.93156819]
[1756573253070,0.06,200.75,200.74,46.94028548]
[1756573255466,0.06,200.75,200.74,43.93156819]
[1756573255797,0.06,200.75,200.74,46.94028548]
[1756573261884,0.06,200.75,200.74,60.53587949]
[1756573268475,0.06,200.75,200.72,0.03]
[1756573268676,0.06,200.75,200.73,43.92181625]
[1756573268877,0.06,200.75,200.74,3.70871729]
[1756573269687,0.06,200.75,200.74,0.7]
[1756573270095,0.06,200.75,200.72,8.02074665]
[1756573270377,0.06,200.75,200.73,38.24]
[1756573272175,0.06,200.75,200.74,0.7]
[1756573272403,0.06,200.75,200.74,3.70871729]
[1756573274198,0.06,200.75,200.74,8.69028548]
[1756573274501,0.06,200.75,200.74,22.28587949]
[1756573275001,0.06,200.75,200.74,60.52587949]
[1756573275506,0.06,200.76,200.75,3.00871729]
[1756573275682,0.06,200.76,200.75,3.70871729]
[1756573275876,1e-08,200.76,200.75,22.28563134]
[1756573276101,1e-08,200.78,200.76,13.59559401]
[1756573276305,1e-08,200.78,200.77,55.34239368]
[1756573276483,0.06,200.8,200.78,13.59559401]
[1756573276688,1e-08,200.8,200.79,55.34234407]
[1756573276899,1e-08,200.8,200.79,56.04234407]
[1756573277504,1e-08,200.8,200.79,57.72621912]
[1756573278220,0.06,200.84,200.8,13.59559401]
[1756573278511,0.06,200.84,200.83,18.28818635]
[1756573278811,0.06,200.84,200.83,56.52818635]
[1756573279020,0.06,200.84,200.83,57.22818635]
[1756573279184,0.06,200.84,200.83,14.29559401]
[1756573279384,0.06,200.84,200.83,57.22818635]
[1756573280207,0.06,200.84,200.83,62.2075221]
[1756573283228,1e-08,200.85,200.83,118.80545567]
[1756573283402,0.06,200.89,200.84,38.98818635]
[1756573283713,0.2,200.93,200.84,38.98818635]
[1756573283714,0.2,200.93,200.91,18.28818635]
[1756573284008,0.2,200.93,200.91,57.06592165]
[1756573284214,0.2,200.93,200.91,57.76592165]
[1756573284589,1e-08,200.92,200.91,57.76592165]
[1756573285126,1e-08,200.92,200.91,62.76327469]
[1756573285327,1e-08,200.92,200.91,67.66337005]
[1756573285716,1e-08,200.92,200.91,29.36337005]
[1756573286229,1e-08,200.92,200.91,67.66337005]
[1756573286632,1e-08,200.93,200.92,18.28818635]
[1756573286833,1e-08,200.93,200.92,18.98818635]
[1756573287004,1e-08,200.93,200.92,57.28818635]
[1756573287203,1e-08,200.93,200.92,62.26529166]
[1756573288223,1e-08,200.93,200.92,23.96529166]
[1756573288423,1e-08,200.93,200.92,62.26529166]
[1756573289730,1e-08,200.93,200.92,62.24529166]
[1756573290415,1e-08,200.93,200.92,18.57269932]
[1756573290620,1e-08,200.93,200.92,62.24529166]
[1756573291719,1e-08,200.93,200.92,23.96529166]
[1756573291908,1e-08,200.93,200.92,18.57269932]
[1756573292116,1e-08,200.93,200.92,56.85269932]
[1756573292311,1e-08,200.93,200.92,61.54529166]
[1756573292744,1e-08,200.93,200.91,13.59559401]
[1756573292936,1e-08,200.93,200.92,38.28]
[1756573293256,1e-08,200.93,200.92,51.87559401]
[1756573294223,1e-08,200.93,200.92,38.28]
[1756573294624,1e-08,200.93,200.9,18.57318659]
[1756573294825,1e-08,200.93,200.91,38.28]
[1756573296611,4.87259234,200.92,200.86,0.72]
[1756573296828,4.87259234,200.92,200.87,56.56818635]
[1756573297032,0.18,200.92,200.87,57.28818635]
[1756573297626,4.87259234,200.92,200.87,57.28818635]
[1756573298134,4.87259234,200.92,200.87,62.26632881]
[1756573298846,4.87259234,200.92,200.9,0.03]
[1756573299139,4.87259234,200.92,200.91,38.3]
[1756573300130,4.69259234,200.92,200.91,38.3]
[1756573303632,30.69259235,200.93,200.91,38.3]
[1756573303832,4.69259234,200.92,200.91,38.3]
[1756573309635,4.69259234,200.92,200.91,39.02]
[1756573310163,1e-08,200.93,200.91,39.02]
[1756573310339,1e-08,200.93,200.92,0.72]
[1756573310538,1e-08,200.93,200.92,14.31559401]
[1756573311356,1e-08,200.93,200.92,19.29269932]
[1756573314062,1e-08,200.93,200.92,38.96]
[1756573315659,1e-08,200.93,200.92,38.24]
[1756573316388,1e-08,200.93,200.92,38.26]
[1756573317870,4.87259235,200.93,200.91,0.03]
[1756573318088,4.87259234,200.92,200.91,0.03]
[1756573318251,30.87259234,200.92,200.91,0.03]
[1756573318577,4.69259234,200.92,200.91,0.03]
[1756573321886,30.69259234,200.92,200.91,0.03]
[1756573322769,34.8596256,200.92,200.91,0.03]
[1756573323170,35.0396256,200.92,200.91,0.03]
[1756573323470,34.8596256,200.92,200.91,0.03]
[1756573331373,30.69259234,200.92,200.91,0.03]
[1756573333577,1e-08,200.93,200.91,0.03]
[1756573333578,1e-08,200.93,200.91,0.69]
[1756573333778,4.69259234,200.92,200.91,0.69]
[1756573339489,4.1934062,200.93,200.91,5.66729118]
[1756573339688,1e-08,200.93,200.92,0.66]
[1756573340079,1e-08,200.93,200.92,14.25559401]
[1756573340385,1e-08,200.93,200.92,19.23269932]
[1756573343092,4.69259235,200.93,200.91,38.25]
[1756573343277,4.69259234,200.92,200.91,38.91]
[1756573343879,1e-08,200.93,200.91,38.91]
[1756573344076,1e-08,200.93,200.92,0.66]
[1756573346690,1e-08,200.93,200.91,43.22721064]
[1756573346997,4.69259234,200.92,200.91,0.03]
[1756573347596,8.88599853,200.92,200.91,0.03]
[1756573348296,4.69259234,200.92,200.91,0.03]
[1756573351301,30.87259234,200.92,200.91,0.03]
[1756573351482,41.1558477,200.92,200.91,0.03]
[1756573351686,35.56518434,200.92,200.91,0.03]
[1756573352280,40.54228965,200.92,200.91,0.03]
[1756573353600,13.5793075,200.92,200.91,0.75]
[1756573353795,8.88671516,200.92,200.91,0.75]
[1756573353998,30.19412316,200.92,200.91,0.75]
[1756573354291,4.19412317,200.93,200.91,0.75]
[1756573354494,4.19412317,200.93,200.92,0.72]
[1756573354700,8.88671551,200.93,200.92,0.72]
[1756573354893,4.19412317,200.93,200.92,0.72]
[1756573356013,8.88671551,200.93,200.91,0.03]
[1756573356212,4.69259234,200.92,200.91,0.03]
[1756573356684,8.8867155,200.92,200.91,0.03]
[1756573357017,30.87259234,200.92,200.91,0.03]
[1756573357693,35.84969765,200.92,200.91,0.03]
[1756573359201,35.66969765,200.92,200.91,0.03]
[1756573360584,41.26036101,200.92,200.91,0.03]
[1756573360996,35.66969765,200.92,200.91,0.03]
[1756573361813,41.26036101,200.92,200.91,0.03]
[1756573362114,15.44036101,200.92,200.91,0.03]
[1756573362315,9.84969765,200.92,200.91,0.03]
[1756573362485,11.84595465,200.92,200.91,0.03]
[1756573363790,26.0,200.91,200.9,0.03]
[1756573364116,35.38518468,200.91,200.9,0.03]
[1756573364287,35.56518468,200.91,200.9,0.03]
[1756573364493,43.96264685,200.91,200.88,0.03]
[1756573364713,4.69259234,200.89,200.88,0.03]
[1756573365093,12.4608618,200.89,200.88,0.03]
[1756573365283,6.86924834,200.89,200.88,0.03]
[1756573365489,17.43720014,200.89,200.88,0.03]
[1756573365924,11.84709691,200.89,200.88,0.03]
[1756573366290,17.43581179,200.89,200.88,0.03]
[1756573367918,11.84709691,200.89,200.88,0.03]
[1756573368426,17.43248125,200.89,200.88,0.03]
[1756573369190,13.59559401,200.88,200.86,0.03]
[1756573369405,48.65833326,200.87,200.86,0.03]
[1756573369594,48.83833326,200.87,200.8,0.72]
[1756573369794,4.87259234,200.86,200.8,0.72]
[1756573370402,9.85388134,200.86,200.8,0.72]
[1756573371129,14.83247339,200.86,200.8,0.72]
[1756573372694,14.83247339,200.86,200.73,4.98181554]
[1756573372896,26.0,200.82,200.79,0.72]
[1756573373301,40.978656,200.82,200.79,0.72]
[1756573374018,26.0,200.78,200.73,13.59559401]
[1756573374219,4.69259234,200.79,200.73,18.28818635]
[1756573374603,4.69259234,200.79,200.74,0.72]
[1756573375713,4.69259234,200.79,200.74,5.70136376]
[1756573376020,4.69259234,200.78,200.75,0.72]
[1756573377923,26.0,200.79,200.75,5.70127857]
[1756573378123,26.0,200.79,200.76,0.72]
[1756573378327,26.0,200.79,200.76,5.41259234]
[1756573378521,4.69259234,200.81,200.77,0.72]
[1756573379630,26.0,200.8,200.77,0.72]
[1756573381523,4.69259234,200.83,200.78,4.69259234]
[1756573381823,4.69259234,200.83,200.79,0.68]
[1756573382033,4.69259234,200.86,200.8,4.69259234]
[1756573382201,4.980833,200.9,200.83,4.69259234]
[1756573382404,4.69259234,200.89,200.84,0.68]
[1756573383413,30.69259234,200.88,200.84,0.68]
[1756573383613,30.69259234,200.88,200.84,5.65904758]
[1756573383820,30.69259234,200.88,200.85,0.68]
[1756573385223,26.0,200.85,200.84,0.03]
[1756573385408,30.69259234,200.85,200.84,0.03]
[1756573385929,30.87259234,200.85,200.84,0.03]
[1756573386428,32.86944734,200.85,200.84,0.03]
[1756573386650,30.69259234,200.85,200.84,0.03]
[1756573386832,4.69259234,200.85,200.84,0.03]
[1756573387014,35.67143227,200.85,200.84,0.03]
[1756573387217,9.67143227,200.85,200.84,0.03]
[1756573387917,35.67143227,200.85,200.84,0.03]
[1756573388122,9.85143227,200.85,200.84,0.03]
[1756573389238,26.0,200.82,200.81,0.03]
[1756573389735,30.69259234,200.82,200.81,0.03]
[1756573391036,30.69259234,200.82,200.81,0.71]
[1756573391542,30.69259234,200.82,200.81,0.03]
[1756573393117,35.85217604,200.82,200.81,0.03]
[1756573393635,37.84933004,200.82,200.81,0.03]
[1756573395812,37.66933004,200.82,200.81,0.03]
[1756573397634,35.67217604,200.82,200.81,0.03]
[1756573400434,37.66933004,200.82,200.81,0.03]
[1756573400946,46.72730388,200.82,200.81,0.03]
[1756573401682,46.72730388,200.82,200.79,0.03]
[1756573401822,13.5750451,200.8,200.79,0.03]
[1756573402023,18.55512478,200.8,200.79,0.03]
[1756573402224,20.73257778,200.8,200.79,0.03]
[1756573402446,20.73257778,200.8,200.73,0.68]
[1756573402447,26.0,200.77,200.73,0.68]
[1756573402643,4.69259234,200.74,200.73,0.68]
[1756573402828,26.0,200.73,200.72,0.03]
[1756573403041,4.69259234,200.73,200.72,0.71]
[1756573403224,26.0,200.73,200.72,0.71]
[1756573403425,30.69259234,200.73,200.72,0.71]
[1756573404934,26.0,200.73,200.72,0.71]
[1756573405135,30.69259234,200.73,200.72,0.71]
[1756573407144,4.69259234,200.73,200.72,0.71]
[1756573407455,30.69259234,200.73,200.72,0.71]
[1756573417284,4.87259234,200.73,200.72,0.03]
[1756573417565,39.86488568,200.73,200.72,0.03]
[1756573418458,40.04488568,200.73,200.72,0.03]
[1756573419374,74.05440871,200.73,200.72,0.03]
[1756573419567,78.24488568,200.73,200.72,0.03]
[1756573419748,74.05440871,200.73,200.72,0.03]
[1756573421169,78.24488568,200.73,200.72,0.03]
[1756573421372,74.05440871,200.73,200.72,0.03]
[1756573422672,74.23440871,200.73,200.72,0.03]
[1756573422874,78.42488568,200.73,200.72,0.03]
[1756573423253,74.23440871,200.73,200.72,0.03]
[1756573423453,78.92700105,200.73,200.72,0.03]
[1756573423869,78.74700105,200.73,200.72,0.03]
[1756573424068,74.05440871,200.73,200.72,0.03]
[1756573424576,78.24488568,200.73,200.72,0.03]
[1756573428070,78.22488568,200.73,200.72,0.03]
[1756573428279,39.86488568,200.73,200.72,0.03]
[1756573428460,78.20488568,200.73,200.72,0.03]
[1756573430276,74.01440871,200.73,200.72,0.03]
[1756573431378,78.19327756,200.73,200.72,0.03]
[1756573432262,69.03259234,200.73,200.72,0.73]
[1756573433376,78.19327756,200.73,200.72,0.73]
[1756573433761,78.19327756,200.73,200.72,0.03]
[1756573436473,74.01440871,200.73,200.72,0.03]
[1756573438979,79.60014963,200.73,200.72,0.03]
[1756573442481,74.01440871,200.73,200.72,0.03]
[1756573443375,74.19440871,200.73,200.72,0.03]
[1756573443572,74.01440871,200.73,200.72,0.03]
[1756573444386,26.0,200.73,200.72,0.03]
[1756573444565,48.58284602,200.73,200.72,0.74]
[1756573445286,42.99259234,200.73,200.72,0.74]
[1756573445492,47.86518468,200.73,200.72,0.03]
[1756573445662,26.0,200.71,200.7,0.03]
[1756573445867,73.70518468,200.71,200.7,0.03]
[1756573446177,74.60623536,200.71,200.7,0.74]
[1756573446374,36.28623536,200.71,200.7,0.74]
[1756573446576,30.69259234,200.71,200.7,0.74]
[1756573447667,4.69259234,200.71,200.7,0.74]
[1756573447867,30.69259234,200.71,200.7,0.74]
[1756573451705,26.0,200.71,200.7,0.74]
[1756573452001,8.89204284,200.73,200.7,5.72256103]
[1756573452304,4.1994505,200.74,200.7,5.01256103]
[1756573452478,4.1994505,200.74,200.7,9.70515337]
[1756573452678,4.1994505,200.74,200.71,0.71]
[1756573454302,4.1994505,200.77,200.73,4.69259234]
[1756573454504,8.89204284,200.77,200.74,0.71]
[1756573454676,4.69259234,200.77,200.74,0.71]
[1756573454877,8.88952513,200.77,200.74,0.71]
[1756573455499,4.69259234,200.76,200.75,0.71]
[1756573455692,8.88952513,200.76,200.75,0.71]
[1756573456071,4.19693279,200.77,200.75,0.71]
[1756573456405,8.94952513,200.79,200.75,0.71]
[1756573456588,4.69259234,200.78,200.75,0.71]
[1756573457497,8.94952513,200.79,200.75,5.69120612]
[1756573457706,4.75259234,200.79,200.75,4.98120612]
[1756573457890,4.75259234,200.79,200.76,0.71]
[1756573458200,4.69259234,200.78,200.76,0.71]
[1756573460109,4.69259234,200.78,200.76,5.69103016]
[1756573460408,4.69259234,200.78,200.77,0.71]
[1756573461187,0.06,200.79,200.77,0.71]
[1756573462208,0.06,200.79,200.77,5.69073861]
[1756573462689,0.06,200.79,200.78,0.71]
[1756573462884,0.06,200.79,200.78,5.40259234]
[1756573463108,0.06,200.79,200.78,0.71]
[1756573464089,0.06,200.79,200.78,5.69057575]
[1756573464394,0.06,200.79,200.78,10.38316809]
[1756573469731,0.06,200.79,200.78,5.69057575]
[1756573474519,0.06,200.79,200.78,23.9787621]
[1756573474922,0.06,200.79,200.78,80.0787621]
[1756573476747,0.06,200.79,200.78,118.3987621]
[1756573477522,0.06,200.79,200.78,123.1513541]
[1756573478535,0.06,200.79,200.78,84.8313541]
[1756573478829,0.06,200.79,200.78,123.1313541]
[1756573481003,0.06,200.79,200.78,123.1113541]
[1756573481207,0.06,200.79,200.78,75.38616976]
[1756573481427,0.06,200.79,200.78,118.3587621]
[1756573481631,0.06,200.79,200.78,123.1113551]
[1756573485331,0.06,200.79,200.78,121.4233042]
[1756573487834,0.06,200.79,200.78,118.41876276]
[1756573488010,0.06,200.79,200.78,121.4233042]
[1756573495441,1e-08,200.79,200.78,121.4233042]
[1756573497852,1e-08,200.82,200.79,13.59559401]
[1756573498023,1e-08,200.82,200.81,16.60013545]
[1756573498343,1e-08,200.82,200.81,73.19811861]
[1756573498516,0.06,200.87,200.86,3.00454144]
[1756573498719,0.06,200.87,200.86,54.86013545]
[1756573498938,0.06,200.87,200.86,55.52013545]
[1756573499144,0.06,200.87,200.86,57.51619345]
[1756573499943,0.06,200.87,200.86,62.4947855]
[1756573500437,29.24454144,200.87,200.82,4.9795837]
[1756573500643,3.00454144,200.84,200.83,38.26]
[1756573500827,3.00454144,200.85,200.83,38.26]
[1756573501028,3.18454144,200.85,200.83,38.26]
[1756573501441,4.87432979,200.85,200.83,38.26]
[1756573501777,4.87432979,200.86,200.84,4.97908783]
[1756573502048,0.18,200.86,200.85,38.28]
[1756573502250,4.87432979,200.86,200.85,38.28]
[1756573502459,4.87432979,200.86,200.82,4.97946504]
[1756573502638,4.87432979,200.85,200.83,38.28]
[1756573502830,30.75432979,200.87,200.83,38.97]
[1756573503432,30.75432979,200.87,200.84,13.59559401]
[1756573503765,4.24697894,200.89,200.86,23.26851585]
[1756573503766,0.06,200.89,200.86,23.26851585]
[1756573503937,0.06,200.89,200.88,18.2899238]
[1756573504428,0.06,200.89,200.88,18.9799238]
[1756573504631,0.06,200.89,200.88,27.8612328]
[1756573505238,1e-08,200.93,200.88,27.8612328]
[1756573505434,1e-08,200.93,200.92,13.59559401]
[1756573505659,1e-08,200.93,200.92,51.91559401]
[1756573505965,1e-08,200.93,200.92,62.27702911]
[1756573506530,1e-08,200.93,200.92,57.58269932]
[1756573506794,1e-08,200.93,200.92,62.27702911]
[1756573507136,1e-08,200.93,200.92,61.58702911]
[1756573507342,1e-08,200.93,200.92,56.89269932]
[1756573508946,1e-08,200.93,200.92,57.58269932]
[1756573509340,1e-08,200.93,200.92,62.27702911]
[1756573512997,1e-08,200.93,200.92,118.37702911]
[1756573513285,1e-08,200.93,200.92,120.37199211]
[1756573514388,1e-08,200.93,200.92,120.35199211]
[1756573514598,1e-08,200.93,200.92,76.66766232]
[1756573514759,1e-08,200.93,200.92,114.96766232]
[1756573514962,1e-08,200.93,200.92,112.97269932]
[1756573515179,1e-08,200.93,200.92,113.66269932]
[1756573515679,1e-08,200.93,200.92,118.35702911]
[1756573516661,1e-08,200.93,200.92,118.37702911]
[1756573517771,1e-08,200.93,200.92,62.27702911]
[1756573517986,1e-08,200.93,200.92,120.86970164]
[1756573518191,0.2,200.96,200.95,23.26628607]
[1756573518373,0.2,200.96,200.95,61.60628607]
[1756573518572,0.2,200.96,200.95,62.29628607]
[1756573519281,0.2,200.96,200.95,64.29095007]
[1756573520002,1e-08,200.96,200.95,64.29095007]
[1756573520299,0.06,200.98,200.96,13.59559401]
[1756573520496,0.06,200.98,200.97,56.6299238]
[1756573520675,0.06,200.98,200.97,57.3199238]
[1756573521198,0.06,200.98,200.97,59.3143888]
[1756573521896,0.06,200.98,200.97,64.29025584]
[1756573522099,0.06,201.03,200.99,18.2899238]
[1756573522300,0.06,201.03,200.99,56.6099238]
[1756573522604,0.06,201.03,200.99,57.2999238]
[1756573523481,0.06,201.03,200.99,59.2942898]
[1756573524085,0.06,201.03,200.99,64.2696617]
[1756573525090,0.06,201.03,200.99,25.9496617]
[1756573525298,0.06,201.03,200.99,64.2696617]
[1756573529684,0.06,201.03,200.99,120.3296617]
[1756573531104,0.06,201.03,200.99,82.0496617]
[1756573531315,0.06,201.03,200.99,120.3296617]
[1756573534294,0.06,201.03,200.99,82.0496617]
[1756573534497,0.06,201.03,200.99,120.3096617]
[1756573534712,4.69432979,201.05,200.99,115.61533191]
[1756573534914,4.69432979,201.05,201.01,13.59559401]
[1756573535088,4.69432979,201.05,201.02,38.26]
[1756573535288,4.69432979,201.05,201.02,38.93]
[1756573535702,1.994366,201.09,201.03,0.67]
[1756573536012,4.69432979,201.06,201.05,4.97388709]
[1756573536200,4.13047794,201.14,201.05,4.97388709]
[1756573536201,4.69432979,201.07,201.05,4.97388709]
[1756573536393,4.69432979,201.07,201.06,38.24]
[1756573536592,30.972161,201.11,201.06,38.24]
[1756573536793,4.69432979,201.08,201.06,38.24]
[1756573538595,4.69432979,201.08,201.06,43.21361131]
[1756573539321,4.69432979,201.07,201.06,38.24]
[1756573539811,4.69432979,201.07,201.03,18.56992373]
[1756573540018,30.97243748,201.11,201.03,18.56992373]
[1756573540019,4.69432979,201.06,201.04,38.24]
[1756573540926,4.69432979,201.06,201.04,43.21412195]
[1756573542604,4.69432979,201.06,201.05,38.24]
[1756573542999,4.69432979,201.07,201.05,38.24]
[1756573543205,0.06,201.08,201.05,43.21379831]
[1756573543410,4.69432979,201.07,201.05,43.21379831]
[1756573543612,4.69432979,201.07,201.06,38.24]
[1756573546531,4.75432979,201.08,201.06,38.24]
[1756573547330,4.69432979,201.07,201.06,38.24]
[1756573548123,0.06,201.08,201.06,38.24]
[1756573548324,4.69432979,201.07,201.06,38.24]
[1756573549441,4.69432979,201.07,201.05,0.67]
[1756573549604,4.69432979,201.07,201.06,38.24]
[1756573552012,4.69432979,201.07,201.06,38.91]
[1756573553521,4.24801375,201.08,201.06,38.91]
[1756573553918,4.69432979,201.07,201.06,38.91]
[1756573554433,8.94234354,201.08,201.06,38.91]
[1756573555233,4.24801375,201.08,201.06,38.91]
[1756573555423,4.24801375,201.08,201.06,43.88360227]
[1756573555734,4.24801375,201.08,201.06,38.91]
[1756573556330,4.24801375,201.08,201.06,0.67]
[1756573556516,4.24801375,201.08,201.07,38.22]
[1756573557329,0.06,201.08,201.07,38.22]
[1756573557634,0.06,201.08,201.07,38.89]
[1756573557942,0.06,201.08,201.07,38.22]
[1756573558147,0.06,201.08,201.05,0.67]
[1756573558443,4.18910333,201.07,201.06,38.89]
[1756573559843,4.18910333,201.07,201.06,43.8636397]
[1756573560147,0.06,201.08,201.06,43.8636397]
[1756573560440,0.06,201.08,201.07,0.67]
[1756573561144,4.24910333,201.08,201.07,0.67]
[1756573562018,4.24910333,201.08,201.07,5.64339235]
[1756573563123,0.06,201.08,201.07,5.64339235]
[1756573565739,0.06,201.08,201.07,43.86339235]
[1756573567732,4.25588058,201.08,201.07,38.22]
[1756573567926,0.06,201.08,201.07,38.22]
[1756573568129,4.25581762,201.08,201.07,38.89]
[1756573568927,4.25581762,201.08,201.07,43.86339235]
[1756573569126,0.06,201.08,201.07,43.86339235]
[1756573569550,4.25591454,201.08,201.07,43.86339235]
[1756573569743,4.25591454,201.08,201.07,38.22]
[1756573570250,0.06,201.08,201.06,4.97358613]
[1756573570547,4.19601005,201.07,201.06,18.56918014]
[1756573570749,4.19601005,201.07,201.06,56.78918014]
[1756573571047,4.19601005,201.07,201.06,57.45918014]
[1756573572332,4.25601005,201.08,201.06,57.45918014]
[1756573572630,4.25601005,201.08,201.07,0.67]
[1756573573151,4.25601005,201.08,201.07,38.89]
[1756573574361,4.25601005,201.08,201.07,43.86339235]
[1756573577441,4.25601005,201.08,201.07,43.19339235]
[1756573577641,4.25601005,201.08,201.07,43.86339235]
[1756573578854,0.06,201.08,201.07,43.86339235]
[1756573579051,4.25601005,201.08,201.07,43.86339235]
[1756573581046,0.06,201.08,201.07,43.86339235]
[1756573581243,0.06,201.08,201.07,0.67]
[1756573581451,0.06,201.08,201.07,38.89]